bitfinex/quotes_ETHUSD_20240822
["timestamp","ask_amount","ask_price","bid_price","bid_amount"]
[1724308681045,9.339718,2628.9,2628.4,3.9047841]
[1724308681336,9.339718,2628.9,2628.6,1.301]
[1724308681541,8.49068,2628.9,2628.6,1.301]
[1724308682925,4.6868,2628.9,2628.6,1.301]
[1724308685415,3.88062623,2628.9,2628.4,1.301]
[1724308685655,4.9314,2628.8,2628.4,1.301]
[1724308685831,5.00808623,2628.8,2628.4,1.301]
[1724308686846,4.9314,2628.8,2628.4,1.301]
[1724308687055,4.9314,2628.8,2628.6,1.301]
[1724308688235,4.9314,2628.8,2628.6,4.301]
[1724308688762,4.9314,2628.8,2628.6,1.301]
[1724308689061,0.04058524,2628.7,2628.6,1.301]
[1724308689358,4.9314,2628.8,2628.6,1.301]
[1724308689563,0.04075224,2628.7,2628.6,1.301]
[1724308690167,4.9314,2628.8,2628.6,1.301]
[1724308690368,0.04075224,2628.7,2628.6,1.301]
[1724308690765,4.9314,2628.8,2628.6,1.301]
[1724308690966,0.04075224,2628.7,2628.6,1.301]
[1724308691269,4.9314,2628.8,2628.6,1.301]
[1724308691672,0.04075224,2628.7,2628.6,1.301]
[1724308691978,4.9314,2628.8,2628.6,1.301]
[1724308692285,0.04078537,2628.7,2628.6,1.301]
[1724308692632,4.9314,2628.8,2628.6,1.301]
[1724308692969,0.04072458,2628.7,2628.6,1.301]
[1724308693271,4.9314,2628.8,2628.6,1.301]
[1724308693446,0.04072827,2628.7,2628.6,1.301]
[1724308693842,4.6458,2629.0,2628.6,1.811556]
[1724308694055,0.04072827,2628.7,2628.6,0.510556]
[1724308694363,4.6458,2629.0,2628.5,3.0]
[1724308694560,0.04068274,2628.7,2628.5,3.0]
[1724308694763,4.6458,2629.0,2628.6,1.060908]
[1724308695062,4.6458,2629.0,2628.8,1.301]
[1724308696355,6.41354352,2629.3,2628.8,1.301]
[1724308696581,6.41354352,2629.3,2629.1,1.301]
[1724308697567,10.21685352,2629.3,2628.9,1.301]
[1724308698371,15.42223787,2629.3,2628.9,1.301]
[1724308698578,4.7382,2629.1,2628.9,1.301]
[1724308707671,0.04107393,2629.0,2628.9,1.301]
[1724308716877,8.6614,2629.3,2628.9,1.301]
[1724308717184,0.04110707,2629.2,2628.9,1.301]
[1724308717572,6.104555,2629.3,2628.9,1.301]
[1724308717767,0.04109306,2629.1,2628.9,1.301]
[1724308718065,4.8581,2629.3,2628.9,1.301]
[1724308718604,0.04110707,2629.2,2628.9,1.301]
[1724308719000,4.8581,2629.3,2628.9,1.301]
[1724308719205,0.04109306,2629.1,2628.9,1.301]
[1724308719383,4.8581,2629.3,2628.9,1.301]
[1724308719582,0.04107905,2629.0,2628.9,1.301]
[1724308719820,4.8581,2629.3,2628.9,1.301]
[1724308719987,0.04107905,2629.0,2628.9,1.301]
[1724308720190,4.8581,2629.3,2628.9,1.301]
[1724308720370,0.04107905,2629.0,2628.9,1.301]
[1724308720564,4.8581,2629.3,2628.9,1.301]
[1724308720769,0.04107905,2629.0,2628.9,1.301]
[1724308721007,4.8581,2629.3,2628.9,1.301]
[1724308721235,0.04107905,2629.0,2628.9,1.301]
[1724308721541,4.8581,2629.3,2628.9,1.77697553]
[1724308721826,4.8581,2629.3,2628.9,1.301]
[1724308722021,0.04110707,2629.2,2628.9,1.301]
[1724308722373,10.06754335,2629.3,2628.9,1.301]
[1724308722578,0.0411032,2629.1,2628.9,1.301]
[1724308722805,10.06754335,2629.3,2628.9,1.301]
[1724308723013,0.04108918,2629.0,2628.9,1.301]
[1724308723229,10.06754335,2629.3,2628.9,1.301]
[1724308723377,0.04108918,2629.0,2628.9,1.301]
[1724308723726,10.25816352,2629.3,2628.9,1.301]
[1724308723869,0.04108918,2629.0,2628.9,1.301]
[1724308724070,10.25816352,2629.3,2628.9,1.301]
[1724308724818,0.0411172,2629.2,2628.9,1.301]
[1724308725007,1.45136027,2629.2,2628.9,1.301]
[1724308725205,8.86669,2629.0,2628.7,3.0]
[1724308725379,8.86669,2629.0,2628.6,4.301]
[1724308725592,0.04103463,2628.9,2628.7,3.0]
[1724308725789,0.04103463,2628.9,2628.6,1.301]
[1724308726673,0.04103463,2628.9,2628.3,1.98378579]
[1724308726674,3.80405,2628.8,2628.3,1.98378579]
[1724308726885,3.80405,2628.8,2628.2,1.301]
[1724308726886,3.88094623,2628.7,2628.2,1.301]
[1724308727130,4.7697,2628.6,2628.2,1.301]
[1724308727559,0.04072556,2628.5,2628.2,1.301]
[1724308731350,4.2353,2628.4,2628.2,1.301]
[1724308732066,0.04069752,2628.3,2628.2,1.301]
[1724308732410,0.0393337,2628.3,2628.2,1.301]
[1724308734411,4.1556,2628.2,2628.1,1.301]
[1724308734813,4.19588376,2628.2,2627.8,4.00911533]
[1724308735039,4.19588376,2628.2,2627.9,4.301]
[1724308735236,4.19588376,2628.2,2627.9,1.301]
[1724308737232,4.99593114,2628.2,2627.9,1.301]
[1724308737454,4.308,2628.0,2627.9,1.301]
[1724308738062,4.34819497,2628.0,2627.9,1.301]
[1724308743530,8.15346497,2628.0,2627.7,1.301]
[1724308743808,4.2029,2627.9,2627.7,1.301]
[1724308744309,0.04008224,2627.8,2627.7,1.301]
[1724308744622,4.2029,2627.7,2627.4,3.0]
[1724308744909,4.2029,2627.7,2627.4,1.301]
[1724308745072,0.03984154,2627.6,2627.4,1.301]
[1724308749469,4.4985,2627.5,2627.4,1.301]
[1724308749876,4.53819585,2627.5,2627.2,3.0]
[1724308750167,5.07638486,2627.5,2627.1,1.301]
[1724308750369,4.61488208,2627.5,2627.1,1.301]
[1724308751559,4.53819585,2627.5,2627.3,1.301]
[1724308762075,8.34408585,2627.5,2627.3,1.301]
[1724308762281,3.7347,2627.4,2627.1,1.301]
[1724308762486,3.7347,2627.3,2627.1,1.301]
[1724308762750,3.77397818,2627.3,2627.1,1.301]
[1724308776393,3.77397818,2627.3,2627.2,0.59538366]
[1724308779636,3.77397818,2627.3,2627.2,0.59538288]
[1724308782953,3.77397818,2627.3,2627.2,0.59538004]
[1724308786142,3.77397818,2627.3,2627.1,1.301]
[1724308786323,3.77397818,2627.3,2627.2,0.59535131]
[1724308787003,0.03927818,2627.3,2627.2,4.97197544]
[1724308787342,2.2601,2627.5,2627.2,7.97197544]
[1724308787542,2.2601,2627.5,2627.2,7.37662413]
[1724308787543,0.03906971,2627.3,2627.2,7.37662413]
[1724308787840,2.2601,2627.5,2627.2,7.37662413]
[1724308787841,2.2601,2627.5,2627.3,2.03866241]
[1724308788041,2.2601,2627.5,2627.3,5.03866241]
[1724308788206,0.03911413,2627.4,2627.3,5.03866241]
[1724308788917,2.2601,2627.5,2627.3,5.03866241]
[1724308789135,2.2601,2627.5,2627.4,3.0]
[1724308789330,2.2601,2627.5,2627.3,1.301]
[1724308791356,2.3816,2627.4,2627.3,1.301]
[1724308793240,2.3244,2627.7,2627.3,1.301]
[1724308793451,2.3244,2627.7,2627.3,1.51070835]
[1724308796239,6.13001,2627.7,2627.3,1.51070835]
[1724308796859,2.3244,2627.7,2627.3,1.51070835]
[1724308797671,0.03907139,2627.6,2627.3,1.51070835]
[1724308800073,0.03907139,2627.6,2627.3,1.301]
[1724308801145,2.444,2627.5,2627.3,1.301]
[1724308801345,2.444,2627.3,2627.1,3.0]
[1724308801656,0.03908546,2627.2,2627.0,4.301]
[1724308801856,0.03908546,2627.2,2627.0,1.301]
[1724308802057,6.2502,2627.3,2627.0,1.301]
[1724308802298,0.03903965,2627.1,2627.0,1.301]
[1724308802570,6.2502,2627.3,2627.0,2.62429813]
[1724308802796,6.2502,2627.3,2627.0,1.301]
[1724308803334,0.03905062,2627.2,2627.0,1.301]
[1724308803571,6.2502,2627.3,2627.0,1.301]
[1724308803791,2.3977,2627.2,2627.0,1.301]
[1724308803950,2.4367543,2627.2,2627.0,1.301]
[1724308806479,2.4367543,2627.2,2627.1,1.32330538]
[1724308806659,2.4367543,2627.2,2627.1,4.32330538]
[1724308807396,2.4367543,2627.2,2627.1,5.72668127]
[1724308809591,0.0390543,2627.2,2627.1,9.53309182]
[1724308809795,2.312,2627.4,2627.1,11.51796071]
[1724308809965,2.312,2627.4,2627.3,1.301]
[1724308810290,2.312,2627.4,2627.3,4.301]
[1724308810683,2.312,2627.4,2627.3,1.301]
[1724308811292,3.80606,2627.4,2627.2,3.0]
[1724308811498,2.312,2627.3,2627.0,1.301]
[1724308812707,2.33655021,2627.2,2627.0,1.301]
[1724308812865,2.33655021,2627.2,2627.0,4.301]
[1724308813611,2.33655021,2627.2,2627.1,3.0]
[1724308813971,2.33655021,2627.2,2627.0,4.301]
[1724308814170,2.33655021,2627.2,2627.0,1.301]
[1724308820282,2.33655021,2627.2,2626.9,3.0]
[1724308820577,2.33655021,2627.2,2626.9,1.301]
[1724308821010,2.33655021,2627.2,2627.1,1.301]
[1724308823880,0.03895021,2627.2,2627.1,4.301]
[1724308824126,0.03895021,2627.2,2627.1,8.918224]
[1724308824284,2.4956,2627.6,2627.1,9.468174]
[1724308824486,2.4956,2627.6,2627.5,1.301]
[1724308826843,2.3189,2628.0,2627.5,1.301]
[1724308827003,2.3189,2628.0,2627.7,1.301]
[1724308827207,2.3778,2627.9,2627.7,1.301]
[1724308827604,0.03892736,2627.8,2627.7,1.301]
[1724308828562,2.30542736,2627.8,2627.5,1.301]
[1724308831806,2.33814181,2627.8,2627.5,1.301]
[1724308833125,3.80564,2627.7,2627.3,3.0]
[1724308833331,2.351,2627.6,2627.4,1.301]
[1724308833510,6.22863573,2627.6,2627.4,1.301]
[1724308836206,2.42285573,2627.6,2627.4,1.301]
[1724308837813,0.07185573,2627.6,2627.4,4.301]
[1724308838047,2.4574,2627.8,2627.4,5.31018519]
[1724308838235,0.07184997,2627.7,2627.6,1.301]
[1724308838434,2.4574,2627.8,2627.6,1.301]
[1724308838692,0.07184997,2627.7,2627.6,1.301]
[1724308839051,2.4574,2627.8,2627.6,1.301]
[1724308839271,0.07185668,2627.7,2627.6,1.301]
[1724308839572,2.4574,2627.8,2627.6,1.301]
[1724308839771,0.07186004,2627.7,2627.6,1.301]
[1724308840146,2.4574,2627.8,2627.6,1.301]
[1724308840350,0.0718634,2627.7,2627.6,1.301]
[1724308840681,2.4574,2627.8,2627.6,1.301]
[1724308840851,0.07184619,2627.7,2627.6,1.301]
[1724308841053,2.4574,2627.8,2627.6,1.301]
[1724308841254,0.07186676,2627.7,2627.6,1.301]
[1724308841456,2.4574,2627.8,2627.6,1.301]
[1724308841672,0.07186676,2627.7,2627.6,1.301]
[1724308841859,2.4574,2627.8,2627.6,1.301]
[1724308842078,0.07184955,2627.7,2627.6,1.301]
[1724308842464,2.4574,2627.8,2627.6,1.301]
[1724308842765,0.07190018,2627.7,2627.6,1.301]
[1724308843182,2.4574,2627.8,2627.6,1.301]
[1724308843335,0.0719006,2627.7,2627.6,1.301]
[1724308843739,2.4574,2627.8,2627.6,1.77722893]
[1724308844041,0.07190732,2627.7,2627.6,1.301]
[1724308844238,0.07190732,2627.7,2627.6,1.77722841]
[1724308844672,6.26286,2627.8,2627.6,1.77722841]
[1724308844843,6.26286,2627.8,2627.6,1.301]
[1724308844844,0.07191404,2627.7,2627.6,1.301]
[1724308845038,6.26286,2627.8,2627.6,1.301]
[1724308845267,0.07191404,2627.7,2627.6,1.301]
[1724308845487,6.26286,2627.8,2627.6,1.7772215]
[1724308845665,0.07191739,2627.7,2627.6,1.301]
[1724308845870,6.26286,2627.8,2627.6,1.77722149]
[1724308846166,0.07191739,2627.7,2627.6,1.301]
[1724308846368,0.07191739,2627.7,2627.6,1.77722286]
[1724308846563,6.26286,2627.8,2627.6,1.77722286]
[1724308846892,0.07190018,2627.7,2627.6,1.301]
[1724308847095,0.07190018,2627.7,2627.6,1.77722536]
[1724308847297,6.26286,2627.8,2627.6,1.77722536]
[1724308847471,0.07190018,2627.7,2627.6,1.301]
[1724308847667,6.26286,2627.8,2627.6,2.37249994]
[1724308847982,6.26286,2627.8,2627.7,0.59527775]
[1724308848197,6.26286,2627.8,2627.6,1.301]
[1724308848394,2.3777,2627.7,2627.6,1.301]
[1724308848701,2.3777,2627.7,2627.6,1.77723786]
[1724308849278,6.1833,2627.7,2627.6,1.77723786]
[1724308849614,6.1833,2627.7,2627.6,0.47623786]
[1724308849780,3.80575,2627.6,2627.5,0.47623786]
[1724308850123,3.80596,2627.5,2627.2,1.301]
[1724308850403,2.2502,2627.4,2627.3,0.47627699]
[1724308854209,6.05624,2627.4,2627.3,0.47627699]
[1724308854409,7.05012862,2627.4,2627.3,0.47627699]
[1724308854957,7.05012862,2627.4,2627.0,1.301]
[1724308855133,6.05624,2627.4,2627.0,1.301]
[1724308856437,3.80604,2627.4,2627.0,1.301]
[1724308856599,2.4868,2627.3,2627.0,1.301]
[1724308857710,0.07174508,2627.2,2627.0,1.301]
[1724308857966,2.2899,2627.1,2627.0,1.301]
[1724308858325,2.36163804,2627.1,2627.0,1.301]
[1724308860531,6.16822804,2627.1,2626.8,4.301]
[1724308860781,2.3864,2626.9,2626.4,2.78084302]
[1724308860943,2.36619569,2626.9,2626.8,1.301]
[1724308862664,1.59788552,2627.4,2626.8,1.301]
[1724308862870,3.30205934,2628.3,2627.3,1.301]
[1724308862871,3.80553,2627.8,2627.3,1.301]
[1724308863027,3.80553,2627.8,2627.3,1.811739]
[1724308863232,3.80553,2627.8,2627.2,7.16234587]
[1724308863233,7.61107,2627.8,2627.5,1.301]
[1724308863464,3.80553,2627.8,2627.5,1.301]
[1724308863648,4.72640055,2627.8,2627.5,1.301]
[1724308863848,2.46,2627.7,2627.5,1.301]
[1724308867592,2.46,2627.7,2627.3,1.65685092]
[1724308868171,2.46,2627.7,2627.4,0.35585092]
[1724308869080,2.46,2627.7,2627.4,0.35587881]
[1724308869701,2.46,2627.7,2627.3,1.301]
[1724308869702,2.2802,2627.5,2627.3,0.35587881]
[1724308869920,2.2802,2627.5,2627.1,4.301]
[1724308870266,3.80612,2627.4,2627.1,3.35596853]
[1724308870465,6.06611,2627.3,2627.0,0.35596853]
[1724308870669,4.42242062,2627.4,2627.0,0.35596853]
[1724308870670,3.88301623,2627.2,2627.0,0.35596853]
[1724308870872,2.2599,2627.1,2626.8,0.35596853]
[1724308871106,2.2599,2627.1,2626.9,0.35596853]
[1724308871261,2.2599,2627.1,2627.0,0.35596853]
[1724308871463,2.2599,2627.1,2626.9,1.301]
[1724308871661,2.2599,2627.1,2627.0,0.35596853]
[1724308872804,2.32900152,2627.1,2627.0,0.35596853]
[1724308873241,2.32900152,2627.1,2627.0,0.35601593]
[1724308873612,2.32900152,2627.1,2627.0,0.35600879]
[1724308876625,2.32900152,2627.1,2627.0,0.35601152]
[1724308878128,2.32900152,2627.1,2627.0,5.26655841]
[1724308878307,2.32900152,2627.1,2627.0,8.26655841]
[1724308879937,2.32900152,2627.1,2627.0,7.91054689]
[1724308880440,2.32900152,2627.1,2627.0,8.26650392]
[1724308880847,2.32900152,2627.1,2627.0,4.45988392]
[1724308881138,2.32900152,2627.1,2627.0,3.35595703]
[1724308883371,2.32900152,2627.1,2627.0,3.0]
[1724308883572,2.32900152,2627.1,2627.0,3.35597653]
[1724308885376,2.32900152,2627.1,2627.0,0.35597653]
[1724308886702,2.2986,2627.0,2626.7,4.65699244]
[1724308886872,2.2986,2627.0,2626.7,0.35599244]
[1724308887077,3.95225775,2627.1,2626.8,0.35599244]
[1724308887078,2.3366404,2626.9,2626.8,0.35599244]
[1724308887861,2.95862006,2626.9,2626.8,0.35599244]
[1724308888172,3.80699,2626.8,2626.6,0.35599244]
[1724308888390,2.4666,2626.6,2626.5,1.301]
[1724308888719,2.4666,2626.6,2626.4,0.35599244]
[1724308888998,2.4666,2626.6,2626.3,1.301]
[1724308888999,2.53542305,2626.6,2626.5,0.35599244]
[1724308889188,2.53542305,2626.6,2626.4,0.35599244]
[1724308889388,2.53542305,2626.6,2626.5,0.35599244]
[1724308889589,2.53542305,2626.6,2626.5,1.301]
[1724308889791,2.53542305,2626.6,2626.5,1.65699244]
[1724308890098,2.53542305,2626.6,2626.5,1.301]
[1724308891486,2.53542305,2626.6,2626.3,3.35599244]
[1724308891688,2.53542305,2626.6,2626.3,1.301]
[1724308891970,2.53542305,2626.6,2626.3,1.65699244]
[1724308892167,2.53542305,2626.6,2626.3,4.301]
[1724308892381,2.53542305,2626.6,2626.3,1.301]
[1724308894591,2.53542305,2626.6,2626.3,4.301]
[1724308899813,2.53542305,2626.6,2626.5,1.301]
[1724308900018,2.53542305,2626.6,2626.5,8.10834]
[1724308901612,2.53542305,2626.6,2626.5,4.301]
[1724308904332,2.53542305,2626.6,2626.5,8.10834]
[1724308904333,0.06882305,2626.6,2626.5,8.10834]
[1724308904501,0.06882305,2626.6,2626.5,9.33553306]
[1724308906423,0.06882305,2626.6,2626.5,5.52819306]
[1724308906614,0.06882305,2626.6,2626.5,4.301]
[1724308906816,0.06882305,2626.6,2626.5,1.301]
[1724308908606,0.06882305,2626.6,2626.5,1.89649496]
[1724308910416,0.06882305,2626.6,2626.5,1.89649629]
[1724308913820,0.06882305,2626.6,2626.5,1.301]
[1724308914021,0.06882305,2626.6,2626.5,1.89650207]
[1724308915122,0.06882305,2626.6,2626.5,2.37290371]
[1724308915321,0.06882305,2626.6,2626.5,5.37290371]
[1724308915733,0.06882305,2626.6,2626.5,1.89650207]
[1724308916028,0.06882305,2626.6,2626.5,2.37290371]
[1724308922168,0.06882305,2626.6,2626.5,6.18024371]
[1724308922464,0.06882305,2626.6,2626.5,6.74790835]
[1724308922671,0.06882305,2626.6,2626.5,6.74788055]
[1724308922863,0.06882305,2626.6,2626.5,11.10522055]
[1724308923169,0.06882305,2626.6,2626.5,18.4713083]
[1724308923458,7.44,2627.1,2626.5,18.4713083]
[1724308923459,7.44,2627.1,2627.0,3.80662]
[1724308923659,7.44,2627.1,2627.0,9.72949591]
[1724308923967,7.50858294,2627.1,2627.0,9.72949591]
[1724308924665,7.50858294,2627.1,2627.0,5.92287591]
[1724308924868,7.50858294,2627.1,2627.0,9.72949591]
[1724308925029,9.94558294,2627.1,2627.0,4.07187591]
[1724308925370,9.94558294,2627.1,2627.0,0.59547427]
[1724308925774,9.94558294,2627.1,2627.0,1.07182074]
[1724308927368,2.50558294,2627.1,2627.0,1.07182074]
[1724308932306,2.50558294,2627.1,2627.0,1.07179266]
[1724308935499,2.50558294,2627.1,2626.9,1.301]
[1724308935708,2.50558294,2627.1,2627.0,1.07170729]
[1724308936229,2.50558294,2627.1,2627.0,5.44654732]
[1724308938667,2.50558294,2627.1,2627.0,4.97023297]
[1724308938981,2.50558294,2627.1,2627.0,5.44652647]
[1724308940500,2.50558294,2627.1,2627.0,13.05976647]
[1724308940703,0.06858294,2627.1,2627.0,13.05976647]
[1724308941001,2.2806,2627.4,2627.2,3.80632]
[1724308941197,2.2806,2627.4,2627.3,2.37268644]
[1724308941817,2.2856,2627.7,2627.4,3.80602]
[1724308941970,2.2856,2627.7,2627.6,1.301]
[1724308942290,2.2856,2627.7,2627.6,1.89629021]
[1724308944021,2.2856,2627.7,2627.6,1.301]
[1724308944206,2.2856,2627.7,2627.6,1.89629413]
[1724308947703,2.3548683,2627.7,2627.6,1.89629413]
[1724308947920,2.3548683,2627.7,2627.4,6.80604]
[1724308947921,2.3548683,2627.7,2627.5,0.59529413]
[1724308948215,2.3548683,2627.7,2627.4,4.301]
[1724308948420,2.3548683,2627.7,2627.5,0.59531808]
[1724308948582,2.3548683,2627.7,2627.4,4.301]
[1724308948919,2.3548683,2627.7,2627.5,0.5953225]
[1724308949083,2.3548683,2627.7,2627.4,4.301]
[1724308949281,2.3548683,2627.7,2627.5,0.595327]
[1724308949521,2.3548683,2627.7,2627.4,4.301]
[1724308959341,2.3548683,2627.7,2627.4,8.10697]
[1724308959636,2.3548683,2627.7,2627.6,1.301]
[1724308959843,2.3548683,2627.7,2627.6,4.301]
[1724308960941,2.3548683,2627.7,2627.6,3.0]
[1724308961086,2.3548683,2627.7,2627.6,4.301]
[1724308966639,2.3548683,2627.7,2627.6,1.301]
[1724308980488,2.3548683,2627.7,2627.6,1.65694567]
[1724308980687,2.3548683,2627.7,2627.6,1.301]
[1724308980887,2.3548683,2627.7,2627.6,1.65694666]
[1724308981924,2.3548683,2627.7,2627.6,1.301]
[1724308990028,2.3548683,2627.7,2627.5,3.0]
[1724308990227,6.55549196,2627.7,2627.4,4.301]
[1724308990441,2.3897,2627.6,2627.4,1.301]
[1724308990632,2.45933102,2627.6,2627.4,1.301]
[1724308991737,2.45933102,2627.6,2627.2,8.10732]
[1724308991940,2.45933102,2627.6,2627.3,1.32321047]
[1724308992731,2.45933102,2627.6,2627.4,1.301]
[1724308995704,2.45933102,2627.6,2627.4,4.301]
[1724308995904,2.45933102,2627.6,2627.4,1.301]
[1724308997059,2.45933102,2627.6,2627.4,4.301]
[1724308998625,2.44236157,2627.6,2627.4,4.301]
[1724309009637,2.44236157,2627.6,2627.5,0.59530271]
[1724309009848,2.44236157,2627.6,2627.4,4.301]
[1724309010047,2.44236157,2627.6,2627.5,0.59531105]
[1724309010232,2.44236157,2627.6,2627.4,8.10701]
[1724309010433,2.44236157,2627.6,2627.5,0.59530605]
[1724309010647,2.44236157,2627.6,2627.5,1.91841129]
[1724309010811,2.44236157,2627.6,2627.5,4.91841129]
[1724309011546,2.44236157,2627.6,2627.5,3.59530605]
[1724309012931,2.44236157,2627.6,2627.5,0.5952949]
[1724309013337,2.44236157,2627.6,2627.5,0.59530158]
[1724309015582,12.68555351,2627.6,2627.5,0.59530158]
[1724309016308,12.28546033,2627.6,2627.5,0.59530158]
[1724309016628,6.10697978,2627.6,2627.3,0.01703048]
[1724309016948,2.2938,2627.5,2627.3,0.01703048]
[1724309017317,0.06934471,2627.4,2627.3,0.01703048]
[1724309026893,0.06934471,2627.4,2627.3,3.01703048]
[1724309027260,0.06934471,2627.4,2627.3,4.02794434]
[1724309027971,0.06934471,2627.4,2627.3,9.15726653]
[1724309028975,0.06934471,2627.4,2627.3,4.02794434]
[1724309029155,0.06934471,2627.4,2627.3,3.01703048]
[1724309032399,0.06934471,2627.4,2627.3,3.01598641]
[1724309034608,2.2993,2627.4,2627.3,3.01598641]
[1724309034912,6.17474046,2627.4,2627.3,3.01598641]
[1724309035711,2.36870046,2627.4,2627.3,3.01598641]
[1724309036795,2.36870046,2627.4,2627.3,4.31698641]
[1724309037730,2.36870046,2627.4,2627.3,8.12316641]
[1724309039309,2.36870046,2627.4,2627.3,9.31611005]
[1724309039698,0.06940046,2627.4,2627.3,10.63923901]
[1724309039907,2.4826,2627.6,2627.3,10.63923901]
[1724309040261,2.4826,2627.6,2627.5,1.301]
[1724309043117,2.4523,2627.9,2627.8,3.80546]
[1724309043286,2.4523,2627.9,2627.8,5.10646]
[1724309043674,2.4523,2627.9,2627.8,1.301]
[1724309044410,2.4523,2627.9,2627.8,5.65646]
[1724309044574,2.2927,2628.1,2627.8,5.65646]
[1724309044777,2.2927,2628.1,2628.0,1.301]
[1724309046338,2.2927,2628.1,2627.8,4.851]
[1724309050794,2.2927,2628.1,2628.0,1.301]
[1724309052528,2.36246942,2628.1,2628.0,1.301]
[1724309063699,2.36246942,2628.1,2627.8,8.65638]
[1724309064336,2.59871636,2628.1,2627.8,3.0]
[1724309064543,2.59871636,2628.1,2627.9,3.0]
[1724309064836,2.59871636,2628.1,2627.7,4.301]
[1724309069260,2.59871636,2628.1,2627.7,8.10658]
[1724309069466,2.36246942,2628.1,2627.7,8.10658]
[1724309071283,2.36246942,2628.1,2627.7,4.301]
[1724309072677,0.07668623,2628.0,2627.7,3.0]
[1724309072959,2.49397574,2627.9,2627.5,5.10683]
[1724309073150,2.6811662,2627.9,2627.6,3.0]
[1724309073369,0.06986296,2627.8,2627.6,3.0]
[1724309073533,2.2853,2627.7,2627.6,3.0]
[1724309074852,2.35515017,2627.7,2627.6,3.0]
[1724309075722,2.35515017,2627.7,2627.5,4.301]
[1724309075928,2.2853,2627.7,2627.5,4.301]
[1724309077363,0.06983739,2627.6,2627.4,3.0]
[1724309077666,2.3368,2627.5,2627.4,1.301]
[1724309078160,2.40632528,2627.5,2627.4,5.10704]
[1724309078406,2.3368,2627.5,2627.4,8.10704]
[1724309079331,2.3744,2628.1,2627.4,9.92941166]
[1724309079575,0.06953338,2628.0,2627.7,1.301]
[1724309079874,2.3744,2628.0,2627.7,1.301]
[1724309080173,2.4595,2627.8,2627.7,1.301]
[1724309080468,2.52906872,2627.8,2627.7,1.301]
[1724309085342,2.52906872,2627.8,2627.5,3.0]
[1724309085547,2.52906872,2627.8,2627.5,4.301]
[1724309090290,2.52906872,2627.8,2627.5,1.301]
[1724309090592,2.409,2627.6,2627.5,1.301]
[1724309090795,2.47861924,2627.6,2627.5,1.301]
[1724309097684,2.47861924,2627.6,2627.3,4.31698641]
[1724309097885,2.47861924,2627.6,2627.3,0.01598641]
[1724309098189,2.4387,2627.4,2627.3,0.01598641]
[1724309098416,2.50808063,2627.4,2627.3,0.01598641]
[1724309102604,2.58476686,2627.4,2627.3,0.01598641]
[1724309103001,2.50808063,2627.4,2627.3,0.01598641]
[1724309115112,2.50808063,2627.4,2627.2,0.31698641]
[1724309118153,2.50808063,2627.4,2627.0,1.301]
[1724309119925,2.50808063,2627.4,2627.2,1.301]
[1724309129474,2.50808063,2627.4,2627.2,0.301]
[1724309135081,0.06938063,2627.4,2627.3,0.55]
[1724309135314,0.06938063,2627.4,2627.3,4.821913]
[1724309135508,2.4244,2627.8,2627.4,3.806]
[1724309135711,2.4244,2627.8,2627.5,1.851]
[1724309136002,2.4244,2627.8,2627.5,1.301]
[1724309136845,2.4244,2627.8,2627.7,1.301]
[1724309137309,2.4244,2627.8,2627.7,1.851]
[1724309137510,2.4244,2627.8,2627.7,4.851]
[1724309141570,2.4464,2628.0,2627.7,4.851]
[1724309141705,2.4464,2628.0,2627.9,1.301]
[1724309142415,2.4464,2628.0,2627.7,4.851]
[1724309142645,0.0695882,2627.9,2627.7,4.851]
[1724309143274,0.0695882,2627.9,2627.7,3.851]
[1724309144541,0.0695882,2627.9,2627.8,3.80546]
[1724309144848,0.0695882,2627.9,2627.8,7.61092]
[1724309145247,0.0695882,2627.9,2627.8,8.16092]
[1724309146046,0.0695882,2627.9,2627.8,11.16092]
[1724309146615,2.4765,2628.2,2627.9,3.80521]
[1724309146919,2.4765,2628.2,2628.1,1.301]
[1724309149834,2.4765,2628.2,2628.1,1.89616051]
[1724309150059,2.276,2628.6,2628.1,1.89616051]
[1724309150235,2.276,2628.6,2628.4,1.301]
[1724309151249,2.276,2628.6,2628.4,5.10558]
[1724309151445,2.276,2628.6,2628.5,3.80445]
[1724309151648,2.3409,2629.0,2628.6,3.80427]
[1724309151846,2.3409,2629.0,2628.8,1.301]
[1724309153553,2.3409,2629.0,2628.6,4.301]
[1724309153754,2.3409,2629.0,2628.7,0.55]
[1724309153914,2.57499,2629.0,2628.7,0.55]
[1724309154743,2.57499,2629.0,2628.6,1.301]
[1724309155261,2.3409,2629.0,2628.6,1.301]
[1724309157765,2.3797,2628.8,2628.6,1.301]
[1724309158124,0.07085192,2628.7,2628.6,1.301]
[1724309158325,0.07085192,2628.7,2628.6,1.851]
[1724309158529,2.3797,2628.8,2628.6,1.851]
[1724309158927,0.07085192,2628.7,2628.6,1.851]
[1724309159428,2.3797,2628.8,2628.6,1.851]
[1724309159650,0.07085192,2628.7,2628.6,1.851]
[1724309159954,2.3797,2628.8,2628.6,1.851]
[1724309160334,0.07085192,2628.7,2628.6,1.851]
[1724309160766,2.3797,2628.8,2628.6,1.851]
[1724309161159,2.42615192,2628.7,2628.6,1.851]
[1724309161769,2.42615192,2628.7,2628.5,3.0]
[1724309161932,2.42615192,2628.7,2628.4,4.301]
[1724309162132,2.42615192,2628.7,2628.6,1.301]
[1724309166246,2.42615192,2628.7,2628.6,5.1053]
[1724309166449,2.42615192,2628.7,2628.6,8.6553]
[1724309167867,2.42615192,2628.7,2628.6,7.6553]
[1724309168577,2.3553,2628.7,2628.6,7.6553]
[1724309172480,2.3553,2628.7,2628.6,8.801273]
[1724309173646,11.24316,2629.4,2628.6,8.801273]